bitfinex/quotes_ETHUSD_20241129
["timestamp","ask_amount","ask_price","bid_price","bid_amount"]
[1732856128661,0.26024359,3583.4,3583.1,0.09277838]
[1732856128947,0.26024359,3583.3,3583.1,0.09277838]
[1732856129119,0.26024359,3583.4,3583.1,0.09277838]
[1732856129317,0.26024359,3583.3,3583.1,0.09277838]
[1732856129521,0.1846,3583.7,3583.1,0.09277838]
[1732856129522,0.26024359,3583.4,3583.1,2.88358838]
[1732856129728,0.26024359,3583.3,3583.1,2.79081]
[1732856129923,0.26024359,3583.6,3583.1,2.79081]
[1732856130127,0.26024359,3583.5,3583.2,0.09269052]
[1732856130355,0.26024359,3583.4,3583.2,0.09269052]
[1732856130531,1.41889908,3583.7,3583.2,2.88348052]
[1732856130532,0.26024359,3583.6,3583.2,2.88348052]
[1732856130861,0.26024359,3583.5,3583.2,2.88348052]
[1732856131029,0.26024359,3583.4,3583.2,2.88348052]
[1732856131349,0.27440818,3583.6,3583.2,0.09269052]
[1732856131549,0.26028058,3583.5,3583.2,0.09269052]
[1732856131754,0.26028058,3583.4,3583.1,2.79087]
[1732856131951,0.0141276,3583.6,3583.3,0.09248766]
[1732856132152,0.26035852,3583.5,3583.2,0.91310288]
[1732856132371,1.65074801,3583.7,3583.4,0.09247244]
[1732856132532,2.79056,3583.5,3583.3,0.09246647]
[1732856132733,0.26043113,3583.4,3582.9,2.79097]
[1732856133067,0.26043113,3583.3,3582.8,3.61169]
[1732856133355,0.26043113,3583.2,3582.8,3.61169]
[1732856133520,3.20698893,3583.6,3582.8,3.61169]
[1732856133737,0.26055345,3583.5,3582.8,3.61169]
[1732856133967,0.26055345,3583.4,3582.8,3.61169]
[1732856134277,0.26055345,3583.3,3582.8,4.30713084]
[1732856134438,0.26055345,3583.2,3583.1,2.79087]
[1732856134777,0.26072413,3583.2,3583.1,0.8175]
[1732856135078,0.41715862,3583.8,3583.3,2.7907]
[1732856135229,0.67787663,3583.7,3583.3,2.7907]
[1732856135429,0.67787663,3583.6,3583.3,2.7907]
[1732856135634,0.26071801,3583.5,3583.3,2.7907]
[1732856135829,0.26071801,3583.4,3583.3,2.7907]
[1732856137032,0.26071801,3583.4,3583.3,3.430607]
[1732856137243,0.26071801,3583.4,3583.3,4.257507]
[1732856137981,0.26071801,3583.4,3583.0,0.8269]
[1732856138136,0.26071801,3583.3,3583.0,0.8269]
[1732856138471,0.26071801,3583.2,3583.0,0.8269]
[1732856138629,0.41742465,3583.6,3583.0,0.8269]
[1732856138834,0.1846,3583.7,3583.0,0.8269]
[1732856138835,0.6783133,3583.5,3583.0,0.8269]
[1732856139063,0.1846,3583.7,3583.0,0.8269]
[1732856139064,0.26088865,3583.4,3583.0,1.188692]
[1732856139266,0.26088865,3583.3,3583.0,1.188692]
[1732856139570,0.26088865,3583.2,3583.1,2.79087]
[1732856142268,0.26088865,3583.2,3583.1,2.88332152]
[1732856142688,0.26088865,3583.2,3583.1,0.09245152]
[1732856143289,0.26088865,3583.2,3582.7,3.56448]
[1732856143290,0.67853159,3583.2,3582.7,3.56448]
[1732856143579,0.26088865,3583.1,3582.7,3.56448]
[1732856143785,0.26088865,3583.0,3582.7,0.7733]
[1732856143944,0.26088865,3582.9,3582.8,2.79108]
[1732856144450,0.41775914,3583.3,3582.9,2.79099]
[1732856144765,0.26111531,3583.2,3582.9,2.79099]
[1732856144948,0.26111531,3583.1,3582.9,2.79099]
[1732856145154,0.417821,3583.5,3582.9,2.79099]
[1732856145366,0.417821,3583.5,3582.8,2.79108]
[1732856145569,0.67898263,3583.4,3583.0,2.79092]
[1732856145848,0.26116163,3583.3,3583.0,2.79092]
[1732856146165,0.26116163,3583.2,3583.0,2.79092]
[1732856146363,0.26116163,3583.1,3583.0,2.79092]
[1732856148495,0.26116163,3583.1,3583.0,4.19715]
[1732856148785,3.61914023,3584.0,3583.0,4.19715]
[1732856148786,0.41813992,3583.9,3583.4,2.79059]
[1732856148977,0.67948744,3583.8,3583.4,2.79059]
[1732856149150,0.67948744,3583.7,3583.4,2.79059]
[1732856149355,3.1846,3584.0,3583.4,2.79059]
[1732856149356,0.67948744,3583.6,3583.4,2.79059]
[1732856149557,0.26134752,3583.5,3583.3,2.79072]
[1732856149867,0.26134752,3583.4,3583.3,2.79072]
[1732856151098,0.26134752,3583.4,3583.3,3.489212]
[1732856152910,0.26134752,3583.4,3583.3,4.280412]
[1732856156088,0.26145314,3583.4,3583.3,4.280412]
[1732856157200,0.26145314,3583.4,3583.3,4.37269087]
[1732856158639,0.41827594,3583.8,3583.3,4.37269087]
[1732856158791,0.67969675,3583.7,3583.3,4.37269087]
[1732856159122,0.26142081,3583.6,3583.4,0.71635609]
[1732856159328,0.26142081,3583.5,3583.4,0.71635609]
[1732856159627,0.41826949,3583.8,3583.4,0.80861974]
[1732856159827,0.679688,3583.7,3583.4,0.80861974]
[1732856160192,0.26141851,3583.6,3583.4,0.80861974]
[1732856160529,3.0,3584.0,3583.5,0.43905397]
[1732856160739,0.67970297,3583.9,3583.5,0.43905397]
[1732856161033,0.67970297,3583.8,3583.6,0.08917858]
[1732856161207,2.79024,3584.0,3583.6,0.08917858]
[1732856161208,0.26142422,3583.7,3583.6,0.11112949]
[1732856161536,0.679697,3583.7,3583.6,0.11112949]
[1732856162036,0.67966577,3583.7,3583.6,0.11112949]
[1732856162712,3.47007577,3583.7,3583.6,0.11112949]
[1732856162906,3.05181991,3583.7,3583.6,0.11112949]
[1732856163319,0.67966681,3583.7,3583.6,0.02195091]
[1732856163637,3.47007681,3583.7,3583.6,0.02195091]
[1732856163936,3.47007681,3583.7,3583.6,0.11099334]
[1732856164144,3.47007681,3583.7,3583.6,0.02195091]
[1732856164298,3.47007681,3583.7,3583.6,0.11099334]
[1732856164799,3.47007681,3583.7,3583.6,0.02195091]
[1732856165536,3.47018127,3583.7,3583.6,0.02195091]
[1732856166237,7.88908035,3583.7,3583.6,0.02195091]
[1732856166732,8.32483116,3583.7,3583.6,0.02195091]
[1732856168426,9.49470786,3583.7,3583.6,0.02195091]
[1732856168627,8.32483116,3583.7,3583.6,0.02195091]
[1732856168922,8.32477081,3583.7,3583.6,0.02195091]
[1732856169236,13.49464751,3583.7,3583.6,0.02195091]
[1732856172358,13.49433127,3583.7,3583.6,0.02195091]
[1732856172659,12.37918578,3583.7,3583.6,0.02195091]
[1732856172882,14.0442801,3583.7,3583.6,9.1e-07]
[1732856173034,14.0442801,3583.7,3582.1,0.7614]
[1732856173035,2.7915,3582.3,3582.1,0.7614]
[1732856173227,2.7915,3582.3,3581.2,1.23429908]
[1732856173228,2.7915,3582.3,3581.5,0.7614]
[1732856173533,2.79163,3582.2,3581.6,0.55711551]
[1732856173763,2.7915,3582.3,3581.6,0.63812595]
[1732856174060,2.79172,3582.1,3581.6,0.63812595]
[1732856174262,2.79174,3582.0,3581.7,0.1399526]
[1732856174421,2.79181,3581.9,3581.8,0.08097998]
[1732856174623,2.79181,3581.9,3581.7,0.1399526]
[1732856174818,2.79181,3581.9,3581.8,0.08109501]
[1732856175066,2.79195,3581.8,3581.5,0.7614]
[1732856175272,2.79197,3581.7,3581.5,0.7614]
[1732856175560,2.79197,3581.7,3581.6,0.08112547]
[1732856175944,4.28726286,3581.7,3581.6,0.08112547]
[1732856176126,2.79228,3581.3,3581.2,0.55091292]
[1732856176426,2.79228,3581.3,3580.9,0.8256]
[1732856176825,2.79228,3581.3,3581.0,0.08175869]
[1732856177018,2.79238,3581.2,3581.0,0.08175869]
[1732856178045,2.79243,3581.1,3581.0,0.08175869]
[1732856178260,2.79238,3581.2,3580.6,0.7933]
[1732856178464,2.79253,3581.0,3580.7,0.08195279]
[1732856178880,2.79261,3580.9,3580.7,0.08195279]
[1732856180135,2.79267,3580.8,3580.7,0.08195279]
[1732856180442,2.79267,3580.8,3580.4,0.29159022]
[1732856180633,2.79286,3580.6,3580.4,0.29159022]
[1732856180834,2.79286,3580.6,3580.5,0.08199539]
[1732856181973,2.7929,3580.5,3580.4,0.29159022]
[1732856182279,2.793,3580.4,3580.2,0.7891]
[1732856182529,2.793,3580.4,3580.3,0.08202587]
[1732856182869,2.793,3580.4,3579.8,0.8174]
[1732856183067,2.793,3580.4,3579.9,0.08208685]
[1732856184778,2.79282,3580.6,3579.9,0.08208685]
[1732856185073,2.79293,3580.5,3579.9,0.08208685]
[1732856185676,2.79298,3580.4,3579.9,0.08208685]
[1732856185844,0.1846,3580.5,3579.9,0.08208685]
[1732856186264,2.97757,3580.5,3579.9,0.08208685]
[1732856187283,2.793,3580.4,3579.9,0.08208685]
[1732856187591,2.79307,3580.3,3579.9,0.08208685]
[1732856188607,2.9916576,3580.5,3579.9,0.08208685]
[1732856189173,2.97753,3580.5,3579.9,0.08208685]
[1732856189375,2.9916576,3580.5,3579.9,0.08208685]
[1732856189801,2.79302,3580.4,3579.9,0.08208685]
[1732856191503,2.79307,3580.3,3579.9,0.08208685]
[1732856192312,2.79318,3580.2,3579.9,0.08208685]
[1732856193617,2.79305,3580.4,3579.9,0.08208685]
[1732856194783,2.79312,3580.3,3579.9,0.08208685]
[1732856196385,2.79293,3580.5,3580.0,0.7984]
[1732856196717,2.79278,3580.7,3580.2,0.8176]
[1732856197125,2.79278,3580.7,3580.3,0.08301962]
[1732856197278,2.79278,3580.7,3580.2,0.8176]
[1732856197651,2.79278,3580.7,3580.3,0.08301962]
[1732856198651,2.79286,3580.6,3580.3,0.08301962]
[1732856199447,2.79267,3580.8,3580.3,0.08301962]
[1732856199618,2.79275,3580.7,3580.3,0.08301962]
[1732856199822,2.79275,3580.7,3580.4,0.08300438]
[1732856200018,2.79275,3580.7,3580.2,0.8176]
[1732856200232,2.79275,3580.7,3580.3,0.08301962]
[1732856200438,0.297727,3580.8,3580.3,0.08301962]
[1732856200635,0.26023708,3580.8,3580.3,0.08301962]
[1732856200840,3.0,3581.0,3580.4,0.7863]
[1732856201040,0.2602241,3580.9,3580.4,0.7863]
[1732856201224,3.0,3580.8,3580.4,0.7863]
[1732856201853,2.79244,3581.1,3580.4,0.7863]
[1732856202051,3.26046519,3581.0,3580.5,0.08298913]
[1732856202230,0.26046519,3580.9,3580.5,0.08298913]
[1732856202426,0.26046519,3580.8,3580.5,0.08298913]
[1732856202631,0.26046519,3580.7,3580.5,0.08298913]
[1732856202831,0.41722524,3581.0,3580.5,0.08298913]
[1732856203035,3.0,3581.4,3580.5,0.08298913]
[1732856203036,0.26075545,3580.9,3580.8,0.8066]
[1732856203462,0.26075545,3580.9,3580.8,0.88941612]
[1732856204156,3.20873069,3581.1,3580.8,0.88941612]
[1732856204333,3.0,3581.3,3580.8,0.88941612]
[1732856205472,2.79242,3581.2,3580.8,0.88941612]
[1732856208254,3.0,3581.3,3580.8,0.88941612]
[1732856208654,3.0,3581.3,3580.8,1.26043233]
[1732856209963,3.0,3581.2,3580.8,1.26043233]
[1732856210160,3.0,3581.2,3580.8,0.88941612]
[1732856210574,2.7925,3581.1,3580.8,0.08281612]
[1732856210775,2.79259,3580.9,3580.8,0.08281612]
[1732856211093,2.79281,3580.7,3580.0,0.8101]
[1732856211406,2.8069376,3580.7,3580.0,1.50512371]
[1732856211950,2.79281,3580.7,3580.0,4.29839371]
[1732856212253,2.79283,3580.6,3580.0,1.50512371]
[1732856212705,2.79259,3580.9,3580.0,1.50512371]
[1732856212706,3.0,3580.8,3580.1,2.79317]
[1732856212885,2.7927,3580.8,3580.1,2.79317]
[1732856213306,2.7927,3580.8,3580.1,3.55765509]
[1732856214303,0.41840666,3580.7,3580.1,3.55765509]
[1732856214499,0.41840666,3580.6,3580.1,3.55765509]
[1732856214819,0.41840666,3580.5,3580.1,3.55765509]
[1732856215016,2.7927,3580.8,3580.1,3.55765509]
[1732856215199,0.41840338,3580.7,3580.1,3.55765509]
[1732856215527,0.41840338,3580.6,3580.1,3.55765509]
[1732856215729,2.7927,3580.8,3580.1,3.55765509]
[1732856215730,0.41840338,3580.5,3580.2,0.71610551]
[1732856215906,2.7927,3580.8,3580.2,0.71610551]
[1732856216296,0.67991356,3580.7,3580.2,0.71610551]
[1732856216525,0.67991356,3580.6,3580.2,0.71610551]
[1732856216722,0.67991356,3580.5,3580.2,0.71610551]
[1732856216927,2.7927,3580.8,3580.2,0.71610551]
[1732856216928,0.26150562,3580.4,3580.2,0.71610551]
[1732856217222,0.26150562,3580.3,3580.2,0.71610551]
[1732856218398,0.67994491,3580.3,3580.2,0.71610551]
[1732856218605,0.6799536,3580.3,3580.2,3.50924551]
[1732856218807,0.6799536,3580.3,3580.2,1.50600551]
[1732856219115,0.67995379,3580.3,3580.2,0.7899]
[1732856219635,0.6800136,3580.3,3580.2,0.7899]
[1732856220535,0.26154369,3580.3,3580.2,0.7899]
[1732856220709,0.43590615,3581.0,3580.3,0.7558]
[1732856221045,0.4183612,3581.4,3581.3,3.54808]
[1732856221216,4.4183612,3581.4,3581.3,3.54808]
[1732856221546,4.0,3581.4,3581.3,3.54808]
[1732856221912,0.41814634,3581.7,3581.4,2.79219]
[1732856222239,0.41814634,3581.6,3581.5,2.79212]
[1732856222445,0.41800544,3582.0,3581.4,2.79217]
[1732856222605,0.41800544,3581.9,3581.4,2.79217]
[1732856222805,0.41800544,3581.8,3581.4,2.79217]
[1732856223114,0.41800544,3582.0,3581.6,2.79198]
[1732856223325,0.41800544,3581.9,3581.6,2.79198]
[1732856223534,0.41800544,3582.2,3581.6,2.79198]
[1732856223709,0.41800544,3582.1,3581.7,2.79195]
[1732856224042,0.41800544,3582.2,3581.7,2.79195]
[1732856224346,3.41800544,3582.3,3581.7,2.79195]
[1732856224707,0.41800544,3582.3,3581.7,2.79195]
[1732856224916,3.0,3582.2,3581.7,2.79195]
[1732856225221,3.41800544,3582.2,3581.7,2.79195]
[1732856225421,3.0,3582.2,3581.7,2.79195]
[1732856225749,5.79138,3582.5,3581.7,2.79195]
[1732856225945,0.41759639,3582.4,3581.7,2.79195]
[1732856226306,0.41759639,3582.4,3581.8,0.08218509]
[1732856226506,0.41759639,3582.4,3581.7,2.79195]
[1732856226728,0.41759639,3582.4,3581.8,2.87406509]
[1732856227784,0.41759639,3582.4,3581.9,0.7955]
[1732856227918,0.41759639,3582.4,3582.0,2.7917]
[1732856228122,0.1846,3582.6,3582.1,0.0821394]
[1732856228449,3.1846,3582.6,3582.1,0.0821394]
[1732856228621,4.19977539,3582.6,3582.1,0.0821394]
[1732856229011,1.19947153,3582.6,3582.1,0.0821394]
[1732856229210,0.41729253,3582.7,3582.1,0.0821394]
[1732856229534,3.1846,3582.9,3582.2,0.08207875]
[1732856229711,3.60189253,3582.9,3582.3,2.79149]
[1732856229912,0.60189253,3582.9,3582.4,0.0820483]
[1732856230115,0.1846,3582.9,3582.4,0.0820483]
[1732856231026,0.80297125,3582.9,3582.4,0.0820483]
[1732856231345,3.61837125,3582.9,3582.5,0.804]
[1732856231764,3.61837125,3582.9,3582.6,0.08134849]
[1732856232258,4.03522306,3582.9,3582.6,0.08134849]
[1732856232562,3.61837125,3582.9,3582.6,0.08134849]
[1732856232922,0.26045965,3582.8,3582.6,0.08134849]
[1732856233824,0.1846,3582.7,3582.6,0.08134849]
[1732856234028,6.80037725,3582.7,3582.6,0.08134849]
[1732856234259,6.80037725,3582.7,3581.3,0.783]
[1732856234260,3.1846,3582.2,3581.1,2.79237]
[1732856234424,2.79196,3581.8,3581.0,0.783]
[1732856234637,0.0141276,3581.7,3581.2,0.08151325]
[1732856234835,0.0141276,3581.7,3581.0,0.783]
[1732856234836,2.79212,3581.5,3581.1,0.0788289]
[1732856235038,2.79212,3581.5,3581.0,0.783]
[1732856235039,0.0141276,3581.4,3581.3,0.07879843]
[1732856235238,2.97672,3581.5,3581.2,0.07881366]
[1732856235453,0.1846,3581.5,3581.3,0.07879843]
[1732856235827,0.1846,3581.5,3580.9,2.79258]
[1732856236155,5.79199,3581.7,3580.9,2.79258]
[1732856236487,3.0,3581.9,3581.1,2.79243]
[1732856236659,3.0,3581.9,3581.2,2.79233]
[1732856236976,0.0141276,3581.8,3581.2,2.87114366]
[1732856237281,3.0141276,3581.8,3581.2,2.87114366]
[1732856238136,3.0,3582.0,3581.2,0.07881366]
[1732856238355,0.8580935,3581.9,3581.2,2.79235]
[1732856238567,3.0141276,3581.8,3581.3,0.07879843]
[1732856239535,3.0,3581.8,3581.3,0.87929843]
[1732856241099,0.1846,3582.1,3581.3,3.67154843]
[1732856241236,0.26048496,3582.0,3581.3,3.67154843]
[1732856242384,3.0,3581.9,3581.3,3.67154843]
[1732856243874,2.79182,3581.9,3581.3,0.87929843]
[1732856244086,3.27478629,3581.8,3581.3,0.87929843]
[1732856244250,3.0141276,3581.8,3581.3,0.87929843]
[1732856244882,3.0,3581.8,3581.3,0.87929843]
[1732856245047,2.7919,3581.8,3581.3,0.87929843]
[1732856245251,0.26074331,3581.7,3581.3,0.87929843]
[1732856245664,2.7919,3581.8,3581.3,0.87929843]
[1732856245845,0.26082875,3581.7,3581.3,0.87929843]
[1732856246178,2.7919,3581.8,3581.3,0.87929843]
[1732856246478,0.26084991,3581.7,3581.3,0.87929843]
[1732856246681,0.26084991,3581.6,3581.3,0.87929843]
[1732856246979,0.26091906,3581.7,3581.3,0.87929843]
[1732856247140,0.26091906,3581.6,3581.3,0.87929843]
[1732856247339,0.26091908,3581.7,3581.3,0.87929843]
[1732856247569,0.26102824,3581.6,3581.3,0.87929843]
[1732856247783,2.7919,3581.8,3581.3,0.87929843]
[1732856247975,0.26102845,3581.7,3581.3,0.87929843]
[1732856248177,0.26102845,3581.6,3581.3,0.87929843]
[1732856248377,0.26115591,3581.5,3581.3,0.87929843]
[1732856248576,2.7919,3581.8,3581.3,0.87929843]
[1732856248876,0.26115811,3581.7,3581.3,0.87929843]
[1732856249082,2.79213,3581.5,3581.3,0.07879843]
[1732856249390,0.0141276,3581.4,3581.0,0.8183]
[1732856249693,0.26133145,3581.3,3581.0,0.8183]
[1732856249987,2.8063476,3581.4,3581.0,0.8183]
[1732856250183,0.26132871,3581.3,3581.0,0.8183]
[1732856250394,2.8063476,3581.4,3581.0,0.8183]
[1732856250552,0.26132279,3581.3,3581.0,0.8183]
[1732856250753,2.8063476,3581.4,3581.0,0.8183]
[1732856251053,0.26132038,3581.3,3581.0,0.8183]
[1732856251260,2.79222,3581.4,3581.0,0.8183]
[1732856251466,0.26131791,3581.3,3581.0,0.8183]
[1732856251685,2.79222,3581.4,3581.0,0.8183]
[1732856251986,0.2613077,3581.3,3580.7,0.8126]
[1732856252192,2.79258,3581.0,3580.7,0.8126]
[1732856252486,2.79258,3581.0,3579.4,2.79369]
[1732856252487,2.79274,3580.8,3580.4,0.8126]
[1732856252692,0.2613077,3580.7,3580.4,0.8126]
[1732856252891,5.58456,3581.3,3580.4,0.8126]
[1732856253048,2.79257,3581.0,3580.4,0.8126]
[1732856253252,0.26128461,3580.9,3580.4,0.8126]
[1732856253495,0.26128461,3580.8,3580.4,0.8126]
[1732856253651,2.79257,3581.0,3580.4,0.8126]
[1732856253853,3.06793434,3580.9,3580.4,0.8126]
[1732856254070,0.26119674,3580.8,3580.4,0.8126]
[1732856254253,0.0141276,3580.7,3580.1,0.7881]
[1732856254452,2.79283,3580.6,3580.1,0.7881]
[1732856255997,2.79274,3580.8,3580.1,0.7881]
[1732856256159,2.79261,3580.9,3580.1,3.939438]
[1732856256494,3.0536626,3580.8,3580.1,3.939438]
[1732856256659,2.79267,3580.8,3580.1,3.939438]
[1732856258959,0.1846,3581.0,3580.1,3.939438]
[1732856259165,0.26090883,3580.9,3580.2,0.3939438]
[1732856259388,2.79271,3580.8,3580.2,0.3939438]
[1732856261605,2.97715,3581.0,3580.2,0.3939438]
[1732856261812,3.05361855,3580.9,3580.3,2.79304]
[1732856261992,2.79261,3580.9,3580.2,0.3939438]
[1732856262192,0.26101207,3580.8,3580.4,0.07987607]
[1732856262395,2.79261,3580.9,3580.3,0.07989132]
[1732856262736,0.26109572,3580.8,3580.4,0.07987607]
[1732856262906,2.79261,3580.9,3580.2,0.3939438]
[1732856263096,0.26109589,3580.8,3580.2,0.3939438]
[1732856263295,2.79261,3580.9,3580.3,0.07989132]
[1732856263490,0.26120426,3580.8,3580.3,0.07989132]
[1732856263705,0.26120426,3580.7,3580.3,0.07989132]
[1732856263913,2.79261,3580.9,3580.3,0.07989132]
[1732856264227,0.2612057,3580.8,3580.3,0.07989132]
[1732856264397,0.2612057,3580.7,3580.3,0.07989132]
[1732856264599,2.79261,3580.9,3580.3,0.07989132]
[1732856264835,0.26122012,3580.8,3580.3,0.07989132]
[1732856264996,0.26122012,3580.7,3580.3,2.87288132]
[1732856265197,2.97714,3581.0,3580.3,3.55770183]
[1732856265397,0.26120514,3580.9,3580.3,2.87288132]
[1732856265727,0.26120514,3580.8,3580.3,2.87288132]
[1732856265929,2.7926,3580.9,3580.3,2.87288132]
[1732856266127,0.26120806,3580.8,3580.3,2.87288132]
[1732856266297,2.7926,3580.9,3580.3,2.87288132]
[1732856266492,0.26121043,3580.8,3580.3,2.87288132]
[1732856266711,2.7926,3580.9,3580.3,2.87288132]
[1732856266929,0.2612118,3580.8,3580.3,2.87288132]
[1732856267120,2.7926,3580.9,3580.3,2.87288132]
[1732856267325,0.26121289,3580.8,3580.3,2.87288132]
[1732856267496,0.26121289,3580.7,3580.3,2.87288132]
[1732856267697,2.7926,3580.9,3580.3,2.87288132]
[1732856267908,0.26121811,3580.8,3580.3,2.87288132]
[1732856268109,2.7926,3580.9,3580.3,2.87288132]
[1732856268310,0.26121634,3580.8,3580.3,2.87288132]
[1732856268535,2.7926,3580.9,3580.3,2.87288132]
[1732856268701,0.26122635,3580.8,3580.3,2.87288132]
[1732856268901,0.26122635,3580.7,3580.3,2.87288132]
[1732856269131,2.7926,3580.9,3580.3,3.48962736]
[1732856269331,0.26122675,3580.8,3580.3,3.48962736]
[1732856269540,0.26122675,3580.7,3580.3,3.48962736]
[1732856269744,2.7926,3580.9,3580.3,3.48962736]
[1732856269931,0.26124032,3580.8,3580.3,3.48962736]
[1732856270111,0.26124032,3580.7,3580.3,3.48962736]
[1732856270308,2.7926,3580.9,3580.3,3.48962736]
[1732856270551,0.26125801,3580.8,3580.3,2.87288132]
[1732856270707,0.26125801,3580.7,3580.3,2.87288132]
[1732856271048,2.7926,3580.9,3580.3,2.87288132]
[1732856271210,2.79288,3580.6,3580.3,0.07989132]
[1732856271541,3.05420312,3580.5,3580.1,0.7881]
[1732856271844,3.1846,3580.7,3580.1,0.7881]
[1732856272057,0.26129414,3580.6,3580.2,0.07987322]
[1732856272248,0.26129414,3580.5,3580.2,0.07987322]
[1732856272407,5.97739,3580.7,3580.2,0.07987322]
[1732856272603,0.26131716,3580.6,3580.2,0.07987322]
[1732856272818,5.97739,3580.7,3580.2,0.07987322]
[1732856272819,0.26131716,3580.5,3580.2,0.07987322]
[1732856273023,2.79291,3580.5,3580.2,0.07987322]
[1732856274024,2.79283,3580.6,3580.2,0.07987322]
[1732856274226,0.26134981,3580.5,3580.2,0.07987322]
[1732856274539,2.79283,3580.6,3580.2,0.07987322]
[1732856274725,0.26137704,3580.5,3580.2,0.07987322]
[1732856274922,2.79283,3580.6,3580.2,0.07987322]
[1732856275122,0.26137746,3580.5,3580.2,0.07987322]
[1732856275338,0.26137746,3580.4,3580.2,0.07987322]
[1732856275614,2.79283,3580.6,3580.2,0.07987322]
[1732856275946,0.26140863,3580.5,3580.2,0.07987322]
[1732856276248,0.26140935,3580.4,3580.2,0.07987322]
[1732856276411,2.79291,3580.5,3580.2,0.07987322]
[1732856276611,0.26144986,3580.4,3580.2,0.07987322]
[1732856276841,2.79291,3580.5,3580.2,0.07987322]
[1732856277052,0.26145001,3580.4,3580.2,0.07987322]
[1732856277235,2.79291,3580.5,3580.2,0.07987322]
[1732856277423,0.26144566,3580.4,3580.2,0.07987322]
[1732856277625,2.79291,3580.5,3580.2,0.07987322]
[1732856277828,0.26150414,3580.4,3580.2,0.07987322]
[1732856278041,2.79291,3580.5,3580.2,0.07987322]
[1732856278235,0.26150446,3580.4,3580.2,0.07987322]
[1732856278445,5.97738,3580.7,3580.2,0.07987322]
[1732856278631,3.47293768,3580.6,3580.2,0.07987322]
[1732856278845,3.05449603,3580.5,3580.2,0.07987322]
[1732856279017,0.26157603,3580.4,3580.2,0.07987322]
[1732856279221,2.79292,3580.5,3580.2,0.07987322]
[1732856279523,0.26158308,3580.4,3580.2,0.07987322]
[1732856279725,0.26158308,3580.3,3580.2,0.07987322]
[1732856280853,0.26158308,3580.3,3580.2,3.64371322]
[1732856281060,0.26158308,3580.3,3580.2,1.21494454]
[1732856281356,0.26180066,3580.3,3580.2,0.85057322]
[1732856291066,0.26180066,3580.3,3580.2,3.64371322]
[1732856291373,0.41890097,3580.8,3580.4,2.79298]
[1732856291527,0.68070789,3580.7,3580.4,2.79298]
[1732856291736,3.0,3581.1,3580.4,2.79298]
[1732856291737,0.26180093,3580.6,3580.4,2.79298]
[1732856291940,0.41888331,3581.0,3580.5,0.07991233]
[1732856292139,0.68068085,3580.9,3580.5,0.07991233]
[1732856292470,0.68068085,3580.8,3580.5,0.07991233]
[1732856292656,0.68068085,3580.7,3580.2,3.56384]
[1732856292853,0.26179754,3580.6,3580.2,0.7707]
[1732856293148,0.26179754,3580.5,3580.3,2.79303]
[1732856293358,0.26179754,3580.4,3580.3,2.79303]
[1732856293561,0.26179754,3580.4,3580.2,0.7707]
[1732856293760,0.41890022,3580.7,3580.2,0.7707]
[1732856293979,0.26181264,3580.6,3580.2,0.7707]
[1732856294180,0.26181264,3580.5,3580.2,0.7707]
[1732856294478,0.26181264,3580.4,3580.2,0.7707]
[1732856294667,0.41891283,3580.6,3580.2,0.7707]
[1732856294850,0.26182095,3580.5,3580.2,0.7707]
[1732856295044,0.26182095,3580.4,3580.2,0.7707]
[1732856295244,3.0,3580.8,3580.2,0.7707]
[1732856295479,0.680778,3580.7,3580.2,0.7707]
[1732856295681,0.680778,3580.6,3580.2,0.7707]
[1732856295855,3.0,3580.8,3580.2,0.7707]
[1732856295856,0.26183757,3580.5,3580.2,0.7707]
[1732856296051,0.26183757,3580.4,3580.2,0.7707]
[1732856296256,0.41894052,3580.6,3580.2,0.7707]
[1732856296577,0.26185547,3580.5,3580.2,3.56381]
[1732856296755,0.26185547,3580.4,3580.2,3.56381]
[1732856296941,0.41896873,3580.6,3580.2,3.56381]
[1732856297144,0.26185511,3580.5,3580.2,3.56381]
[1732856297384,0.26185511,3580.4,3580.2,3.56381]
[1732856297551,0.41897209,3580.6,3580.3,2.79306]
[1732856297753,0.26187198,3580.5,3580.3,2.79306]
[1732856297979,0.26187198,3580.4,3580.3,2.79306]
[1732856298389,0.26187198,3580.4,3580.2,0.7707]
[1732856298680,0.26187198,3580.3,3580.2,0.7707]
[1732856298843,0.26187198,3580.3,3580.2,3.920231]
[1732856300795,0.26187198,3580.3,3580.2,0.7707]
[1732856301102,0.6809946,3580.3,3580.0,3.60724]
[1732856301273,0.26187198,3580.2,3580.0,0.814]
[1732856301471,0.26187198,3580.1,3580.0,3.60729]
[1732856303458,0.26187198,3580.1,3579.8,2.79344]
[1732856303664,0.1846,3580.6,3579.8,2.79344]
[1732856303665,0.26187198,3580.0,3579.8,2.79344]
[1732856303902,0.26187198,3579.9,3579.7,0.7809]
[1732856304200,0.4191107,3580.3,3579.7,0.7809]
[1732856304394,0.68103146,3580.2,3579.7,0.7809]
[1732856304566,0.26192076,3580.1,3579.7,0.7809]
[1732856304898,2.79302,3580.4,3579.7,0.7809]
[1732856304899,0.26192076,3580.0,3579.7,0.7809]
[1732856305136,0.26192076,3579.9,3579.7,1.47452148]
[1732856305413,0.41904225,3580.3,3579.7,1.47452148]
[1732856305561,0.68093872,3580.2,3579.7,0.7809]
[1732856305765,0.26189647,3580.1,3579.7,0.7809]
[1732856305979,0.26189647,3580.0,3579.9,2.79337]
[1732856307279,0.26189647,3580.0,3579.9,2.8706857]
[1732856307482,0.26189647,3580.0,3579.9,3.51519527]
[1732856308974,0.41898908,3580.4,3579.9,3.51519527]
[1732856309203,0.68085745,3580.3,3579.9,2.8706857]
[1732856309517,0.26186837,3580.2,3579.9,2.8706857]
[1732856309718,0.26186846,3580.1,3579.9,2.8706857]
[1732856309928,2.97743,3580.6,3579.9,2.8706857]
[1732856310095,2.97743,3580.6,3580.0,2.79329]
[1732856310295,2.97743,3580.6,3580.0,2.87066015]
[1732856313008,3.0,3580.7,3580.1,3.582]
[1732856313383,3.0,3580.7,3580.1,3.65935491]
[1732856313584,0.68083129,3580.5,3580.1,3.65935491]
[1732856313810,0.26185819,3580.5,3580.1,4.04172438]
[1732856314123,0.26185819,3580.5,3580.2,2.79312]
[1732856314296,0.26184269,3580.4,3580.2,2.79312]
[1732856314501,0.26184269,3580.3,3580.2,2.79312]
[1732856316710,0.26183205,3580.3,3580.2,2.79312]
[1732856317026,0.26182977,3580.3,3580.2,2.79312]
[1732856319020,0.26182977,3580.3,3580.2,5.49393175]
[1732856319186,0.1846,3581.2,3580.7,2.79267]